bitfinex-derivatives/quotes_ETHF0:USTF0_20250620
["timestamp","ask_amount","ask_price","bid_price","bid_amount"]
[1750426580982,49.24709262,2553.3,2553.2,92.12433562]
[1750426581283,59.13964393,2553.3,2553.2,75.30697123]
[1750426581486,59.13964393,2553.3,2553.2,66.35534319]
[1750426581784,59.13964393,2553.3,2553.2,55.26997319]
[1750426581785,50.89009262,2553.3,2553.2,55.26997319]
[1750426581988,50.89009262,2553.3,2553.2,54.08115319]
[1750426582178,91.69009262,2553.3,2553.2,51.59881319]
[1750426582581,91.69009262,2553.3,2553.2,49.84569319]
[1750426583285,94.02223734,2553.3,2553.2,49.84569319]
[1750426583482,62.71623734,2553.3,2553.2,49.84569319]
[1750426583680,35.99954131,2553.3,2553.2,49.84569319]
[1750426583886,34.73634131,2553.3,2553.2,49.84569319]
[1750426584678,34.74534131,2553.3,2553.2,49.84569319]
[1750426584882,34.73634131,2553.3,2553.2,49.84569319]
[1750426585587,32.951,2553.3,2553.2,58.46215319]
[1750426585794,3.2078,2553.4,2553.3,0.78323]
[1750426585983,3.2078,2553.4,2553.3,9.95083]
[1750426586288,34.5108,2553.4,2553.3,9.95083]
[1750426586482,34.5108,2553.4,2553.3,10.62183]
[1750426586682,34.5088,2553.4,2553.3,10.62183]
[1750426586890,6.64,2553.7,2553.6,0.78312]
[1750426587091,31.297,2553.7,2553.6,8.61632]
[1750426587288,3.2078,2554.0,2553.8,0.78307]
[1750426587486,3.2078,2554.0,2553.9,9.1574]
[1750426587487,0.78302,2554.0,2553.9,9.1574]
[1750426587686,33.10219544,2554.0,2553.9,9.1574]
[1750426587886,32.09301,2554.0,2553.9,9.1574]
[1750426589684,32.09301,2554.0,2553.9,7.8332]
[1750426589879,0.7831,2553.7,2553.6,1.3675]
[1750426590182,25.4331,2553.7,2553.6,1.3675]
[1750426590377,9.8478,2554.0,2553.6,9.2007]
[1750426590582,0.78307,2553.8,2553.7,7.8332]
[1750426590987,0.78316,2553.5,2553.4,0.78319]
[1750426591186,24.65,2553.5,2553.4,2.15069]
[1750426591387,25.43316,2553.5,2553.4,9.98389]
[1750426591585,25.43316,2553.5,2553.4,9.2007]
[1750426591783,25.43316,2553.5,2553.4,7.8332]
[1750426591988,0.78319,2553.4,2553.3,0.671]
[1750426592183,0.78323,2553.3,2553.2,49.84569319]
[1750426592389,26.43423148,2553.3,2553.2,43.20569319]
[1750426592585,32.80083148,2553.3,2553.2,43.20569319]
[1750426593287,32.80083148,2553.3,2553.2,42.26137319]
[1750426594287,32.80083148,2553.3,2553.2,42.19203538]
[1750426597889,35.1329762,2553.3,2553.2,40.23345538]
[1750426598088,36.71383148,2553.3,2553.2,32.63826103]
[1750426598294,36.71383148,2553.3,2553.2,26.31793857]
[1750426598493,38.35683148,2553.3,2553.2,19.04685857]
[1750426598688,41.56463148,2553.3,2553.2,10.35260103]
[1750426598887,41.56463148,2553.3,2553.2,7.35899857]
[1750426599188,0.78359,2552.1,2552.0,3.04120365]
[1750426599398,32.00359,2552.1,2552.0,3.04120365]
[1750426599790,31.209,2552.1,2552.0,10.87440365]
[1750426600089,31.99259,2552.1,2552.0,10.87440365]
[1750426601303,31.209,2552.1,2552.0,12.22150365]
[1750426602294,45.13,2552.3,2552.0,12.22150365]
[1750426602499,45.13,2552.3,2552.2,7.8332]
[1750426602798,77.11254,2552.3,2552.2,7.8332]
[1750426602994,0.78357,2552.2,2552.0,4.38830365]
[1750426603192,24.599,2552.1,2552.0,4.38830365]
[1750426603702,25.38259,2552.1,2552.0,12.22150365]
[1750426604394,25.38259,2552.1,2552.0,4.38830365]
[1750426606399,25.38259,2552.1,2552.0,3.04120365]
[1750426606798,26.36114826,2552.1,2552.0,3.04120365]
[1750426607304,27.74274826,2552.1,2552.0,3.04120365]
[1750426607692,27.74274826,2552.1,2552.0,8.87e-06]
[1750426607693,32.74274826,2552.1,2552.0,8.87e-06]
[1750426608400,73.54274826,2552.1,2552.0,8.87e-06]
[1750426608598,0.7839,2551.1,2551.0,1.2464]
[1750426608803,31.9619,2551.1,2551.0,9.0796]
[1750426609007,0.78393,2551.0,2550.9,3.2078]
[1750426609212,31.178,2551.1,2550.9,11.041]
[1750426609497,31.9619,2551.1,2551.0,9.0852]
[1750426610495,31.9619,2551.1,2551.0,7.8332]
[1750426610694,1.95985,2551.0,2550.6,3.2078]
[1750426610896,0.78402,2550.7,2550.6,3.2078]
[1750426611102,31.167,2550.7,2550.6,3.2078]
[1750426611301,31.167,2550.7,2550.6,11.82505]
[1750426611499,31.165,2550.7,2550.6,11.82505]
[1750426611806,31.165,2550.7,2550.6,11.041]
[1750426612298,31.94902,2550.7,2550.6,11.041]
[1750426612500,6.596,2551.2,2550.7,1.96007]
[1750426612699,24.555,2551.1,2551.0,3.2078]
[1750426613092,24.555,2551.1,2551.0,7.8332]
[1750426613093,25.3389,2551.1,2551.0,7.8332]
[1750426619898,31.9099,2551.1,2551.0,7.8332]
[1750426622314,0.78399,2550.8,2550.7,3.2078]
[1750426622612,0.78402,2550.7,2550.5,0.78408]
[1750426622809,0.78402,2550.7,2550.6,0.6863]
[1750426623010,31.105,2550.7,2550.6,8.5195]
[1750426623210,31.105,2550.7,2550.6,9.30355]
[1750426623406,0.78397,2550.9,2550.6,8.5195]
[1750426623709,0.78395,2551.0,2550.8,7.8332]
[1750426624011,0.78387,2551.2,2551.1,7.8332]
[1750426624197,32.86462289,2551.2,2551.1,7.8332]
[1750426624401,32.08075289,2551.2,2551.0,0.78392]
[1750426624601,31.88089,2551.2,2551.1,7.8332]
[1750426624806,32.86507651,2551.2,2551.1,7.8332]
[1750426625008,0.78391,2551.1,2551.0,3.27713781]
[1750426625521,0.78391,2551.1,2551.0,11.11033781]
[1750426625816,1.76865419,2551.1,2551.0,11.11033781]
[1750426626013,1.76865384,2551.1,2551.0,11.11033781]
[1750426626312,32.86516879,2551.1,2551.0,11.11033781]
[1750426626509,32.86516879,2551.1,2551.0,7.90253781]
[1750426626708,32.86516879,2551.1,2551.0,0.06933781]
[1750426626907,36.07296879,2551.1,2551.0,0.06933781]
[1750426628414,0.98525879,2551.1,2551.0,7.90253781]
[1750426628606,32.75316879,2551.1,2551.0,11.11033781]
[1750426628802,32.75316879,2551.1,2551.0,12.39533781]
[1750426629113,32.75316879,2551.1,2551.0,9.18753781]
[1750426629413,49.99331562,2551.1,2551.0,0.06933781]
[1750426629809,32.83116879,2551.1,2551.0,0.06933781]
[1750426630507,32.83116879,2551.1,2551.0,7.90253781]
[1750426631412,32.84016879,2551.1,2551.0,7.90253781]
[1750426632512,32.82916879,2551.1,2551.0,7.90253781]
[1750426633516,32.82916879,2551.1,2551.0,0.06933781]
[1750426634612,37.82916879,2551.1,2551.0,0.06933781]
[1750426634815,43.13557123,2551.1,2551.0,7.81e-06]
[1750426635116,40.80666879,2551.1,2551.0,7.81e-06]
[1750426636210,43.91187205,2551.1,2551.0,7.81e-06]
[1750426637019,0.78412,2550.4,2550.3,0.6404]
[1750426637218,31.83912,2550.4,2550.3,8.4736]
[1750426637517,32.82437879,2550.4,2550.3,8.4736]
[1750426638319,32.82437879,2550.4,2550.3,13.4736]
[1750426640818,42.73562318,2550.4,2550.3,5.0]
[1750426641126,0.78437,2549.6,2549.5,4.4]
[1750426641321,32.81294428,2549.6,2549.5,4.4]
[1750426641622,32.81219016,2549.6,2549.5,12.2332]
[1750426641826,32.81219016,2549.6,2549.5,13.6025]
[1750426642122,32.81219016,2549.6,2549.5,4.4]
[1750426642316,47.72343455,2549.6,2549.5,3.24427]
[1750426642517,20.33682992,2549.6,2549.5,2.42807]
[1750426642716,49.08913455,2549.6,2549.5,0.35936]
[1750426643022,0.78464,2548.7,2548.6,1.3693]
[1750426643214,31.08,2548.7,2548.5,3.2078]
[1750426643416,31.08,2548.7,2548.1,0.681]
[1750426643417,0.98957344,2548.6,2548.1,0.681]
[1750426643617,10.69598439,2548.4,2548.3,7.8332]
[1750426643921,0.78474,2548.4,2548.3,7.8332]
[1750426644120,31.89774,2548.4,2548.3,7.8332]
[1750426644325,0.7848,2548.2,2548.1,0.681]
[1750426644524,3.99252,2548.5,2548.3,7.8332]
[1750426644818,31.89274,2548.4,2548.3,7.8332]
[1750426645018,31.108,2548.4,2548.3,7.8332]
[1750426645224,0.78471,2548.5,2548.3,7.8332]
[1750426645423,10.69593439,2548.6,2548.4,9.1616]
[1750426645627,3.2078,2548.8,2548.5,7.8332]
[1750426645930,55.08524439,2549.2,2548.7,11.041]
[1750426646119,45.174,2549.2,2549.1,7.8332]
[1750426646321,31.142,2549.2,2549.1,7.8332]
[1750426646517,6.509,2549.2,2549.1,9.94612]
[1750426646717,48.3998,2549.7,2549.3,0.78444]
[1750426646923,49.18414,2549.7,2549.6,7.8332]
[1750426647114,81.32328763,2549.7,2549.6,7.8332]
[1750426647314,81.32329763,2549.7,2549.4,2.0035]
[1750426647530,80.33414,2549.7,2549.6,7.8332]
[1750426647821,79.5498,2549.7,2549.6,7.8332]
[1750426648123,53.3998,2549.7,2548.5,3.2078]
[1750426648423,32.91722506,2549.6,2549.5,6.95905]
[1750426648631,31.92837,2549.6,2549.5,6.95905]
[1750426648931,0.78446,2549.3,2549.2,1.9549]
[1750426649120,0.78454,2549.1,2548.6,0.78466]
[1750426649316,31.209,2549.0,2548.7,1.9549]
[1750426649536,25.48658,2548.9,2548.8,1.322]
[1750426649924,25.48658,2548.9,2548.8,8.28105]
[1750426650327,24.702,2548.9,2548.8,8.28105]
[1750426652731,3.2078,2549.4,2548.8,8.28105]
[1750426652932,31.99346,2549.3,2549.2,6.95905]
[1750426653123,31.209,2549.3,2548.8,1.322]
[1750426653327,0.78449,2549.2,2549.1,6.95905]
[1750426653630,10.69573439,2549.2,2549.1,6.95905]
[1750426654026,0.78458,2548.9,2548.8,1.322]
[1750426654225,31.98258,2548.9,2548.8,1.39133781]
[1750426654426,31.98258,2548.9,2548.8,8.35038781]
[1750426655035,7.29458,2548.9,2548.8,8.35038781]
[1750426655236,31.97758,2548.9,2548.8,8.35038781]
[1750426655824,31.193,2548.9,2548.8,8.35038781]
[1750426656033,31.195,2548.9,2548.8,8.35038781]
[1750426656536,31.97958,2548.9,2548.8,8.35038781]
[1750426656836,31.97958,2548.9,2548.8,7.02838781]
[1750426657038,0.78458,2548.9,2548.8,7.02838781]
[1750426657238,0.78458,2548.9,2548.8,8.35378781]
[1750426657435,32.06358,2548.9,2548.8,8.35378781]
[1750426657636,0.78458,2548.9,2548.8,8.35378781]
[1750426657936,32.05758,2548.9,2548.8,8.35378781]
[1750426660934,32.05758,2548.9,2548.8,7.02838781]
[1750426663035,32.05758,2548.9,2547.9,3.2078]
[1750426663036,1.96154,2548.8,2547.9,3.2078]
[1750426663231,3.2078,2548.6,2547.9,3.2078]
[1750426663540,31.302,2548.5,2548.4,0.78473]
[1750426663843,24.704,2548.5,2548.4,12.02498439]
[1750426664042,24.704,2548.5,2548.4,17.02498439]
[1750426664440,45.203,2548.7,2548.6,0.78468]
[1750426664647,69.911,2548.7,2548.6,8.99248]
[1750426664942,6.61,2548.9,2548.6,8.2078]
[1750426665143,24.709,2548.8,2548.7,2.11362]
[1750426665440,25.49361,2548.8,2548.7,2.008]
[1750426667443,25.49361,2548.8,2548.7,2.79264]
[1750426667643,25.49361,2548.8,2548.7,2.008]
[1750426668043,24.709,2548.8,2548.7,2.79264]
[1750426668645,6.61,2548.9,2548.7,2.79262]
[1750426668845,6.61,2548.9,2548.8,2.07571]
[1750426669046,31.306,2548.9,2548.8,2.07571]
[1750426669543,31.306,2548.9,2548.8,2.14504781]
[1750426670439,31.306,2548.9,2548.8,2.07571]
[1750426670648,6.61,2549.0,2548.9,0.78458]
[1750426670947,6.61,2549.1,2549.0,0.78455]
[1750426671245,0.78448,2549.3,2549.2,0.78444]
[1750426671441,6.61,2549.3,2549.2,3.99224]
[1750426671637,0.99791043,2549.3,2549.2,8.99224]
[1750426671840,24.686,2549.6,2549.5,0.78437]
[1750426672043,31.296,2549.6,2549.5,3.9922]
[1750426672241,32.08037,2549.6,2549.5,3.9922]
[1750426672440,32.08037,2549.6,2549.5,3.2078]
[1750426673044,0.78442,2549.5,2549.4,0.78441]
[1750426673244,0.78444,2549.4,2549.3,0.78444]
[1750426673547,0.78446,2549.3,2549.2,1.2543]
[1750426673741,0.78446,2549.3,2549.0,0.78454]
[1750426673945,41.20424439,2549.2,2548.9,1.2543]
[1750426674152,41.20424439,2549.2,2548.8,0.78459]
[1750426674343,0.78458,2548.9,2548.8,2.03891]
[1750426674650,0.78461,2548.8,2548.7,0.06933781]
[1750426674849,7.39461,2548.8,2548.7,0.06933781]
[1750426675047,6.61,2548.8,2548.7,0.85397781]
[1750426675453,3.2078,2549.1,2548.7,0.06933781]
[1750426675644,31.303,2549.0,2548.9,0.78458]
[1750426675844,0.7845,2549.2,2549.1,0.7845]
[1750426676153,31.302,2549.2,2549.1,3.99232]
[1750426676353,45.201,2549.4,2549.3,0.78446]
[1750426676653,76.504,2549.4,2549.3,0.78446]
[1750426676853,51.811,2549.4,2549.3,0.78446]
[1750426677153,76.512,2549.4,2549.3,0.78446]
[1750426677353,77.29643,2549.4,2549.3,0.78446]
[1750426677556,76.512,2549.4,2549.3,0.78446]
[1750426677748,77.29643,2549.4,2549.3,0.78446]
[1750426677948,77.29645,2549.4,2549.3,0.78446]
[1750426678255,0.78447,2549.3,2549.2,0.78447]
[1750426678448,0.78447,2549.3,2549.2,2.06777]
[1750426678655,76.512,2549.4,2549.2,1.2833]
[1750426678956,0.78446,2549.3,2549.2,2.06776]
[1750426679142,0.78449,2549.2,2549.1,3.9923]
[1750426679347,0.78455,2549.0,2548.9,0.67]
[1750426679549,0.78454,2549.1,2549.0,0.78454]
[1750426679756,0.78455,2549.0,2548.9,0.67]
[1750426679956,0.78458,2548.9,2548.8,0.7846]
[1750426680160,0.78461,2548.8,2548.7,3.27713781]
[1750426680349,0.78461,2548.8,2548.7,4.06177781]
[1750426680655,0.78461,2548.8,2548.7,3.27713781]
[1750426682054,25.48159,2548.9,2548.7,4.06176781]
[1750426682454,24.697,2548.9,2548.7,4.06176781]
[1750426683055,25.48159,2548.9,2548.7,4.06176781]
[1750426683255,25.48159,2548.9,2548.8,0.78461]
[1750426683658,24.697,2548.9,2548.8,0.78461]
[1750426683861,25.68545605,2548.9,2548.8,0.78461]
[1750426684260,26.47006605,2548.9,2548.7,3.27713781]
[1750426684450,0.78461,2548.8,2548.7,3.27713781]
[1750426684649,25.48161,2548.9,2548.7,3.27713781]
[1750426684852,24.697,2548.9,2548.7,3.27713781]
[1750426685055,0.78461,2548.8,2548.7,3.27713781]
[1750426685456,0.78461,2548.8,2548.7,0.06933781]
[1750426685760,1.77300024,2548.8,2548.7,0.06933781]
[1750426685961,3.11030024,2548.8,2548.7,0.06933781]
[1750426686964,8.11030024,2548.8,2548.7,0.06933781]
[1750426687263,1.77300024,2548.8,2548.7,0.06933781]
[1750426687467,33.01300024,2548.8,2548.7,0.06933781]
[1750426687855,33.01300024,2548.8,2548.7,0.85397781]
[1750426687856,32.22539024,2548.8,2548.7,0.85397781]
[1750426688057,32.22439024,2548.8,2548.7,0.85397781]
[1750426688359,31.236,2548.8,2548.7,0.85397781]
[1750426688673,0.7845,2549.2,2549.1,0.7845]
[1750426688867,31.237,2549.2,2549.1,3.9923]
[1750426689159,6.594,2549.2,2549.1,3.9923]
[1750426689357,31.243,2549.2,2549.1,3.9923]
[1750426689661,32.02749,2549.2,2549.1,3.2078]
[1750426689866,0.78452,2549.1,2549.0,2.76443]
[1750426690068,0.78452,2549.1,2549.0,0.6569]
[1750426690256,0.78458,2549.0,2548.9,0.78458]
[1750426690565,25.42058,2549.0,2548.9,0.78458]
[1750426690765,24.636,2549.0,2548.9,0.78458]
[1750426691065,45.201,2549.4,2549.2,0.78448]
[1750426691367,45.201,2549.4,2548.9,1.96145]
[1750426691368,0.78449,2549.2,2549.1,3.99231]
[1750426691553,0.78452,2549.1,2549.0,0.78453]
[1750426691865,0.78455,2549.0,2548.9,2.12518]
[1750426692164,25.44254,2549.1,2548.9,1.3406]
[1750426692364,25.44254,2549.1,2549.0,0.78455]
[1750426692966,0.78455,2549.0,2548.9,1.3406]
[1750426693160,0.78458,2548.9,2548.8,3.99239]
[1750426693465,32.02958,2548.9,2548.8,3.99239]
[1750426693653,32.02958,2548.9,2548.8,5.26159]
[1750426694460,32.02958,2548.9,2548.8,4.477]
[1750426694760,32.02958,2548.9,2548.8,5.26161]
[1750426695167,31.245,2548.9,2548.8,5.26161]
[1750426695560,24.667,2548.9,2548.8,4.477]
[1750426695863,24.667,2548.9,2548.8,5.26161]
[1750426696252,24.667,2548.9,2548.8,10.26161]
[1750426697670,0.78456,2549.0,2548.9,0.78458]
[1750426697966,0.78458,2548.9,2548.8,8.2078]
[1750426698162,0.78458,2548.9,2548.8,8.99239]
[1750426698367,0.78458,2548.9,2548.8,5.78459]
[1750426698568,0.78458,2548.9,2548.8,5.78461]
[1750426698970,0.78458,2548.9,2548.8,8.99241]
[1750426699172,0.78453,2549.2,2549.1,0.78449]
[1750426699469,33.0039271,2549.2,2549.1,0.78449]
[1750426700169,0.9893971,2549.2,2549.1,0.78449]
[1750426700373,32.2193971,2549.2,2549.1,3.99229]
[1750426700866,45.98545,2549.4,2549.3,0.78446]
[1750426700867,45.201,2549.4,2549.3,0.78446]
[1750426701067,77.41055345,2549.4,2549.3,0.78446]
[1750426702065,87.32179784,2549.4,2549.1,0.6832]
[1750426702268,1.77402345,2549.3,2549.1,0.6832]
[1750426702567,86.33224439,2549.4,2549.1,0.6832]
[1750426702568,25.41049,2549.2,2549.1,0.6832]
[1750426702770,25.61586023,2549.2,2549.0,0.78453]
[1750426702969,10.69577439,2549.1,2548.8,5.06933781]
[1750426703171,32.00255,2549.0,2548.9,0.78458]
[1750426703373,31.218,2549.0,2548.9,0.78458]
[1750426703875,0.78458,2548.9,2548.8,5.06933781]
[1750426704067,1.77938562,2548.9,2548.8,5.06933781]
[1750426704268,0.99480562,2548.9,2548.8,5.85394781]
[1750426704574,0.99480562,2548.9,2548.8,7.17714781]
[1750426705370,1.77938562,2548.9,2548.8,5.06933781]
[1750426706163,1.77938562,2548.9,2548.8,4.08656781]
[1750426706164,8.09938562,2548.9,2548.8,4.08656781]
[1750426706470,8.09938562,2548.9,2547.8,1.2933]
[1750426706471,7.98780562,2548.9,2547.8,1.2933]
[1750426706671,9.91124439,2548.0,2547.6,0.6429]
[1750426706877,0.78493,2547.8,2547.6,1.9362]
[1750426707075,25.42395,2547.7,2547.6,6.9362]
[1750426707275,24.639,2547.7,2547.6,6.9362]
[1750426707871,25.42395,2547.7,2547.6,6.9362]
[1750426708271,24.639,2547.7,2547.6,7.72118]
[1750426708580,24.639,2547.7,2547.6,6.9362]
[1750426709278,24.639,2547.7,2547.6,5.0]
[1750426709670,24.639,2547.7,2547.6,5.78498]
[1750426709880,25.42395,2547.7,2547.6,5.0]
[1750426710374,25.63151957,2547.7,2547.6,5.0]
[1750426710675,3.2078,2547.9,2547.8,0.78492]
[1750426710878,34.4378,2547.9,2547.8,0.78492]
[1750426711076,34.4378,2547.9,2547.7,2.79174]
[1750426711272,31.239,2547.8,2547.7,2.79174]
[1750426712074,45.202,2548.4,2547.9,1.96221]
[1750426712280,6.595,2548.1,2548.0,0.78486]
[1750426712483,31.239,2548.1,2548.0,0.78486]
[1750426712685,31.239,2548.1,2547.9,3.2078]
[1750426712878,32.02386,2548.1,2547.9,0.78488]
[1750426713181,31.239,2548.1,2547.7,0.6833]
[1750426713387,43.11234439,2548.1,2547.7,0.6833]
[1750426713683,0.78495,2547.7,2547.6,5.0]
[1750426713877,32.02495,2547.7,2547.6,5.0]
[1750426714773,33.27945,2547.7,2547.6,5.0]
[1750426714970,33.90655,2547.7,2547.6,5.0]
[1750426715278,43.81779439,2547.7,2547.6,5.0]
[1750426715879,48.81779439,2547.7,2547.6,5.0]
[1750426716077,49.80942453,2547.7,2547.6,5.0]
[1750426716278,13.56942453,2547.7,2547.6,5.0]
[1750426716582,43.83779439,2547.7,2547.6,5.0]
[1750426716786,0.6271,2547.7,2547.6,5.0]
[1750426717086,32.69505,2547.7,2547.6,5.0]
[1750426717386,13.11904439,2547.9,2547.6,5.0]
[1750426717573,31.293,2547.8,2547.7,0.78495]
[1750426717775,3.2078,2547.9,2547.6,5.0]
[1750426717981,31.299,2547.8,2547.7,0.78493]
[1750426718283,3.2078,2547.9,2547.8,0.78492]
[1750426718773,34.5098,2547.9,2547.8,0.78492]
[1750426718975,45.202,2548.4,2547.8,3.2078]
[1750426719179,45.98674,2548.4,2548.1,0.78481]
[1750426719377,31.3,2548.3,2548.0,0.78483]
[1750426719581,31.3,2548.3,2548.1,0.78481]
[1750426719775,31.3,2548.3,2548.0,0.78483]
[1750426719977,32.08476,2548.3,2548.0,0.78483]
[1750426720480,32.08476,2548.3,2547.7,0.70593781]
[1750426720481,9.91124439,2548.2,2547.7,0.70593781]
[1750426720683,24.684,2548.1,2547.7,0.70593781]
[1750426720885,25.46883,2548.1,2547.8,0.78489]
[1750426721186,24.684,2548.1,2547.9,0.78489]
[1750426721689,25.46884,2548.1,2547.8,0.7849]
[1750426721993,25.46884,2548.1,2547.9,0.78489]
[1750426722190,0.78486,2548.0,2547.8,0.7849]
[1750426722487,32.06589,2547.9,2547.7,0.70593781]
[1750426722679,32.06589,2547.9,2547.7,1.49086781]
[1750426723281,31.281,2547.9,2547.8,3.99272]
[1750426724182,31.275,2547.9,2547.8,3.2078]
[1750426724382,31.275,2547.9,2547.8,3.99269]
[1750426724588,32.05989,2547.9,2547.8,3.2078]
[1750426724789,41.97113439,2547.9,2547.8,3.2078]
[1750426724979,0.78492,2547.8,2547.7,0.06933781]
[1750426725181,2.15142,2547.8,2547.7,0.06933781]
[1750426725787,33.42042,2547.8,2547.7,0.06933781]
[1750426729294,41.93916439,2547.8,2547.7,0.06933781]
[1750426729495,0.78492,2547.8,2547.7,0.06933781]
[1750426730092,32.01992,2547.8,2547.7,0.06933781]
[1750426730691,31.251,2547.8,2547.7,0.85428781]
[1750426730892,31.246,2547.8,2547.7,0.85426781]
[1750426731094,31.246,2547.8,2547.7,2.81576781]
[1750426731392,31.243,2547.8,2547.7,2.81576781]
[1750426731585,31.243,2547.8,2547.7,2.03083781]
[1750426731787,31.243,2547.8,2547.7,2.81578781]
[1750426732287,0.7849,2547.9,2547.7,2.03083781]
[1750426732594,0.78488,2548.0,2547.8,2.09812]
[1750426732890,31.239,2547.9,2547.8,1.3132]
[1750426733192,32.02389,2547.9,2547.8,1.3132]
[1750426734589,32.23853488,2547.9,2547.8,2.09812]
[1750426734892,31.219,2547.9,2547.8,1.3132]
[1750426735195,32.00389,2547.9,2547.8,1.3132]
[1750426735593,31.219,2547.9,2547.8,1.3132]
[1750426735794,10.91168068,2547.9,2547.7,0.06933781]
[1750426735998,31.99292,2547.8,2547.7,2.01623781]
[1750426737191,32.99333886,2547.8,2547.7,2.01623781]
[1750426737399,32.20841886,2547.8,2547.7,2.01623781]
[1750426737696,32.99333886,2547.8,2547.7,2.01623781]
[1750426738094,31.206,2547.8,2547.7,2.80118781]
[1750426739189,24.577,2548.0,2547.7,7.01623781]
[1750426739392,6.616,2548.2,2548.1,0.78482]
[1750426739588,7.61633031,2548.2,2548.1,0.78482]
[1750426739792,6.616,2548.2,2548.1,0.78482]
[1750426740100,31.197,2548.2,2548.1,0.78482]
[1750426740295,31.197,2548.2,2548.1,5.78482]
[1750426740493,45.202,2548.4,2548.3,0.78476]
[1750426740685,51.818,2548.4,2548.3,0.78476]
[1750426740891,45.202,2548.4,2548.3,0.78476]
[1750426741091,0.78461,2548.8,2548.7,0.78464]
[1750426741292,1.00035281,2548.8,2548.7,0.78464]
[1750426741497,45.225,2549.4,2548.8,1.96148]
[1750426741699,32.2044368,2549.3,2549.0,3.2078]
[1750426741996,32.2044368,2549.3,2548.5,1.96173]
[1750426741997,1.96145,2548.9,2548.4,3.2078]
[1750426742196,31.213,2548.8,2548.4,3.2078]
[1750426742394,0.78459,2548.9,2548.7,3.2078]
[1750426742588,24.604,2549.0,2548.9,0.78458]
[1750426742903,31.254,2549.1,2548.8,0.8207]
[1750426743197,31.254,2549.1,2549.0,3.99235]
[1750426743598,24.654,2549.3,2549.0,8.2078]
[1750426743796,51.84,2549.4,2549.3,0.78445]
[1750426744004,76.496,2549.4,2549.3,0.78445]
[1750426744598,76.496,2549.4,2549.3,3.99225]
[1750426744799,6.615,2549.4,2549.3,3.99225]
[1750426745894,9.91124439,2550.0,2549.3,5.16891]
[1750426746201,9.91124439,2550.0,2548.7,10.60645781]
[1750426746202,6.614,2549.9,2549.8,0.7843]
[1750426746410,31.26,2549.9,2549.8,0.7843]
[1750426746697,31.259,2549.9,2549.8,0.7843]
[1750426746903,45.22,2550.3,2549.6,15.07995439]
[1750426747106,0.78421,2550.1,2550.0,0.78423]
[1750426747305,31.235,2550.2,2550.1,0.78421]
[1750426747601,31.235,2550.2,2549.7,5.1686]
[1750426747602,31.235,2550.2,2549.7,3.2078]
[1750426747797,0.78425,2550.0,2549.8,0.7843]
[1750426747997,24.643,2549.9,2549.8,0.7843]
[1750426748399,24.64,2550.1,2550.0,0.78422]
[1750426748603,24.64,2550.1,2550.0,3.2078]
[1750426749104,24.64,2550.1,2550.0,3.99204]
[1750426749303,45.22,2550.3,2550.2,0.78418]
[1750426749503,76.437,2550.3,2550.1,0.7842]
[1750426749704,24.623,2550.2,2550.1,0.78419]
[1750426750104,25.40719,2550.2,2550.0,3.2078]
[1750426750408,25.40718,2550.2,2550.0,3.2078]
[1750426750607,24.623,2550.2,2550.0,3.99203]
[1750426750808,24.623,2550.2,2550.1,0.78421]
[1750426751101,51.811,2550.3,2550.2,0.78418]
[1750426751307,24.611,2550.6,2550.5,0.78407]
[1750426752008,24.61,2550.6,2550.5,0.78407]
[1750426752409,24.61,2550.6,2550.5,5.78407]
[1750426752608,31.2,2550.7,2550.6,0.78405]
[1750426752902,0.78405,2550.6,2550.5,5.0]
[1750426753105,10.69529439,2550.6,2550.5,5.0]
[1750426753304,12.86059439,2550.6,2550.5,5.0]
[1750426754210,24.608,2550.6,2550.5,5.0]
[1750426754511,9.91124439,2551.0,2550.5,5.0]
[1750426754512,0.8517,2551.0,2550.5,5.0]
[1750426754703,31.191,2550.9,2550.7,0.78401]
[1750426754903,31.191,2550.9,2550.8,0.78399]
[1750426755104,31.191,2550.9,2550.5,5.0]
[1750426755312,31.191,2550.9,2550.6,0.7793]
[1750426755807,6.589,2550.9,2550.8,0.78399]
[1750426756004,3.2078,2551.2,2550.7,4.5375]
[1750426756201,9.7968,2551.2,2551.1,0.78389]
[1750426756507,6.589,2551.2,2551.1,0.78389]
[1750426756706,31.202,2551.2,2551.1,0.78389]
[1750426756907,3.2078,2551.7,2551.6,0.78374]
[1750426757309,24.614,2552.0,2551.9,0.78365]
[1750426757613,34.52524439,2552.0,2551.7,1.3297]
[1750426757906,34.52524439,2552.0,2551.8,0.78366]
[1750426757907,24.614,2552.0,2551.8,0.78366]
[1750426758109,6.588,2552.0,2551.6,3.2078]
[1750426758302,6.588,2552.3,2551.7,1.378]
[1750426758499,31.194,2552.3,2552.1,0.78359]
[1750426758700,31.97755,2552.3,2552.0,0.7836]
[1750426758911,0.78357,2552.2,2551.9,0.78363]
[1750426759106,6.588,2552.4,2552.0,4.5858]
[1750426759305,24.615,2552.3,2552.1,0.78358]
[1750426760411,24.615,2552.3,2552.1,0.78357]
[1750426760800,6.52139,2552.8,2552.0,5.36939]
[1750426760801,0.78357,2552.2,2552.0,5.36939]
[1750426761006,0.78366,2551.9,2551.7,3.2078]
[1750426761206,24.591,2551.9,2551.7,3.99149]
[1750426761807,24.591,2551.9,2551.8,0.78368]
[1750426762007,24.593,2552.0,2551.8,1.3359]
[1750426762209,0.78355,2552.3,2552.1,0.78356]
[1750426762413,24.6,2552.2,2552.1,3.99139]
[1750426762616,0.78351,2552.4,2552.2,0.78356]